bitfinex/quotes_ETHUSD_20240824
["timestamp","ask_amount","ask_price","bid_price","bid_amount"]
[1724520110623,3.56125,2808.0,2807.3,0.7845273]
[1724520110977,0.06891228,2807.9,2807.4,2.7882]
[1724520111176,3.56115,2808.1,2807.4,2.7882]
[1724520111471,3.63016106,2808.0,2807.2,3.0]
[1724520111790,3.56158,2807.8,2807.2,3.0]
[1724520111997,0.06890618,2807.7,2807.0,3.0]
[1724520112320,3.56158,2807.8,2807.0,4.93575168]
[1724520112487,2.8726,2807.9,2807.1,3.56238]
[1724520112691,2.8726,2807.9,2807.0,4.93575168]
[1724520112692,0.06890974,2807.7,2807.2,3.0]
[1724520112886,3.63042137,2807.8,2807.0,4.93575168]
[1724520113092,0.06890811,2807.6,2807.0,4.93575168]
[1724520113290,0.06893574,2807.7,2806.5,6.35127]
[1724520113496,3.56172,2807.7,2806.8,3.56269]
[1724520113692,0.06893767,2807.6,2806.8,3.56269]
[1724520114611,0.06893767,2807.6,2806.9,3.0]
[1724520116630,0.06893767,2807.6,2806.9,6.56264]
[1724520116820,0.06893767,2807.6,2806.9,4.012532]
[1724520117191,0.06893767,2807.6,2807.2,3.56225]
[1724520117520,6.43382,2808.1,2807.3,3.49327564]
[1724520117699,0.06879729,2807.5,2807.3,3.49327564]
[1724520117907,6.43382,2808.1,2807.4,1.09777766]
[1724520118329,2.8726,2808.1,2807.4,1.09777766]
[1724520118534,8.220557,2807.7,2807.4,1.09777766]
[1724520119028,0.06879607,2807.6,2807.4,1.09777766]
[1724520120938,0.06879607,2807.6,2807.4,3.88597766]
[1724520121248,8.220557,2807.7,2807.5,4.04480877]
[1724520121389,8.220557,2807.7,2807.5,3.0]
[1724520121589,0.06898162,2807.6,2807.5,3.0]
[1724520124690,0.06898162,2807.6,2807.2,6.56218]
[1724520124987,8.220557,2807.7,2807.2,6.56218]
[1724520125305,0.06894359,2807.6,2807.2,6.56218]
[1724520125506,0.06894359,2807.6,2807.3,1.29127]
[1724520125705,8.220557,2807.7,2807.3,1.29127]
[1724520126105,0.06895399,2807.6,2807.3,1.29127]
[1724520126502,8.220557,2807.7,2807.4,4.05527564]
[1724520126843,0.06892799,2807.6,2807.5,3.0]
[1724520127007,0.06892799,2807.6,2807.5,6.56187]
[1724520127193,8.220557,2807.7,2807.5,6.56187]
[1724520127385,0.06892799,2807.6,2807.5,6.56187]
[1724520127588,8.220557,2807.7,2807.5,6.56187]
[1724520127790,8.220557,2807.7,2807.6,0.70551456]
[1724520129736,8.220557,2807.7,2807.6,6.95757456]
[1724520130111,8.220557,2807.7,2807.5,3.0]
[1724520130288,8.220557,2807.7,2807.2,6.56226]
[1724520130638,8.220557,2807.7,2807.2,3.0]
[1724520132651,8.220557,2807.7,2807.0,7.46819132]
[1724520132652,0.72121983,2807.6,2807.0,7.31]
[1724520132866,6.4421,2807.4,2807.0,7.31]
[1724520133169,3.56239,2807.1,2806.5,2.6304]
[1724520133327,0.73741624,2807.1,2806.6,0.26304]
[1724520133524,0.06894352,2807.0,2806.6,0.26304]
[1724520134769,0.06894352,2807.0,2806.3,3.5634]
[1724520135457,0.06894352,2807.0,2806.4,3.0]
[1724520136040,0.80635976,2807.0,2806.4,3.0]
[1724520136260,0.72135226,2806.9,2806.4,3.0]
[1724520136593,0.72124872,2806.8,2805.7,2.6304]
[1724520136725,0.72124872,2806.8,2805.7,2.96805235]
[1724520136726,0.73741624,2806.4,2805.7,2.96805235]
[1724520136933,0.73741624,2806.5,2805.7,6.53214235]
[1724520137279,2.45775013,2806.4,2805.8,1.00963424]
[1724520137583,0.73741624,2806.5,2805.8,1.00963424]
[1724520137723,0.72085248,2806.4,2805.8,1.00963424]
[1724520137919,0.73741624,2806.5,2805.8,1.00963424]
[1724520138175,0.72093054,2806.4,2805.8,1.00963424]
[1724520138334,1.73611542,2806.4,2805.8,1.00963424]
[1724520138674,4.30056624,2806.5,2805.8,1.00963424]
[1724520138845,4.30056624,2806.5,2805.4,3.72556746]
[1724520138846,4.30083624,2806.3,2805.4,6.35592746]
[1724520139059,4.30083624,2806.3,2804.9,3.56518]
[1724520139060,4.30128624,2806.0,2805.1,2.6304]
[1724520139261,4.30128624,2806.0,2804.9,2.6304]
[1724520139262,3.60099185,2805.9,2804.9,2.6304]
[1724520139453,0.7201793,2805.8,2805.0,3.56503]
[1724520139672,3.61741624,2805.9,2805.1,0.619543]
[1724520139838,0.72018337,2805.8,2805.1,0.619543]
[1724520140242,6.44392,2805.9,2805.1,0.619543]
[1724520141186,3.56406,2805.8,2805.1,0.619543]
[1724520141385,3.56406,2805.8,2805.1,3.0]
[1724520141535,2.88,2805.9,2805.1,3.0]
[1724520141536,3.5643,2805.6,2805.1,3.0]
[1724520141737,3.5643,2805.6,2805.0,3.0]
[1724520142254,3.56444,2805.5,2804.7,3.0]
[1724520142454,3.56425,2805.7,2804.8,3.56531]
[1724520142766,3.56425,2805.7,2804.9,3.656531]
[1724520144245,7.12854,2805.7,2804.9,3.656531]
[1724520144442,6.44392,2805.9,2804.9,3.656531]
[1724520144677,3.56405,2805.8,2804.9,3.656531]
[1724520145335,3.56419,2805.7,2804.9,3.656531]
[1724520145854,3.5643,2805.6,2804.9,3.0]
[1724520146187,3.56419,2805.7,2804.7,7.31]
[1724520146188,3.56419,2805.7,2804.8,3.0]
[1724520146544,3.56419,2805.7,2804.8,6.56529]
[1724520146746,3.56404,2805.8,2804.9,3.56517]
[1724520146995,3.56404,2805.8,2805.0,3.0]
[1724520147226,3.56404,2805.8,2805.0,4.313046]
[1724520147533,2.8702,2806.2,2805.3,3.56467]
[1724520147830,3.56345,2806.3,2805.4,5.7377]
[1724520147978,3.56345,2806.3,2805.4,7.024407]
[1724520148328,3.56367,2806.1,2805.4,7.024407]
[1724520148540,2.8702,2806.5,2805.4,7.024407]
[1724520148541,0.0668126,2806.2,2805.4,7.024407]
[1724520148743,0.06680863,2806.0,2805.4,9.30216]
[1724520148945,0.06681261,2806.1,2805.4,12.86661]
[1724520149141,0.06680935,2805.9,2805.4,9.30215]
[1724520149299,0.06681098,2806.0,2805.4,9.30215]
[1724520149495,0.06681128,2805.8,2805.4,9.30215]
[1724520149834,0.06680966,2805.7,2805.5,0.930215]
[1724520150196,6.43341,2806.5,2805.5,0.930215]
[1724520150540,3.56341,2806.3,2805.5,0.930215]
[1724520150693,3.56341,2806.3,2805.5,4.494615]
[1724520150912,0.06681495,2806.2,2805.6,3.0]
[1724520151113,0.06681495,2806.2,2805.7,0.7494615]
[1724520152329,0.06681495,2806.2,2805.5,3.930215]
[1724520152731,2.8372,2806.1,2805.5,3.0]
[1724520152933,2.8372,2806.1,2805.2,7.31]
[1724520152934,2.8372,2806.1,2805.3,3.0]
[1724520153338,0.06725917,2806.0,2805.3,3.0]
[1724520154321,0.06725917,2806.0,2805.5,2.8246]
[1724520154577,0.06725917,2806.0,2805.6,3.638915]
[1724520154717,3.56351,2806.3,2805.6,3.638915]
[1724520154921,3.56356,2806.2,2805.6,3.638915]
[1724520155161,3.63079119,2806.2,2805.6,3.638915]
[1724520156228,0.06723119,2806.2,2805.6,3.638915]
[1724520156430,3.56333,2806.4,2805.7,1.0027925]
[1724520156628,0.06717721,2806.3,2805.7,1.0027925]
[1724520157441,3.63066721,2806.3,2805.7,1.0027925]
[1724520157661,3.63066721,2806.3,2805.6,3.0]
[1724520157662,3.56356,2806.2,2805.6,3.0]
[1724520158140,0.06717395,2806.1,2805.6,3.0]
[1724520158553,7.12671,2806.4,2805.6,3.0]
[1724520158868,3.56354,2806.2,2805.6,3.0]
[1724520159381,0.06717395,2806.1,2805.6,3.0]
[1724520159731,3.63088395,2806.1,2805.6,3.0]
[1724520160788,0.06717395,2806.1,2805.6,3.0]
[1724520161524,3.56381,2806.0,2805.6,3.0]
[1724520161924,0.0671707,2805.9,2805.6,3.0]
[1724520162177,3.56414,2805.8,2805.6,3.0]
[1724520162320,3.6311307,2805.9,2805.2,7.31]
[1724520162321,0.0671707,2805.9,2805.3,3.0]
[1724520162525,0.06716744,2805.7,2805.3,3.0]
[1724520162752,0.06713783,2805.8,2805.3,4.31346]
[1724520162953,3.56393,2805.9,2805.3,4.31346]
[1724520163162,0.06713621,2805.7,2805.3,4.31346]
[1724520163371,0.06713783,2805.8,2805.4,2.8246]
[1724520163579,0.06713458,2805.6,2805.5,3.0]
[1724520163725,3.56348,2806.3,2805.6,0.58246]
[1724520164165,0.06706627,2806.2,2805.6,0.58246]
[1724520168196,0.06706627,2806.2,2805.7,2.7356]
[1724520168324,3.56277,2806.8,2806.0,2.7356]
[1724520168531,3.5627,2806.9,2806.1,3.0]
[1724520168747,0.06711791,2806.7,2806.1,4.286321]
[1724520169083,0.06711628,2806.6,2806.1,4.286321]
[1724520169437,3.5629,2806.7,2806.1,3.0]
[1724520169661,6.41300628,2806.6,2806.1,3.0]
[1724520169862,6.41300628,2806.6,2805.8,3.0]
[1724520170027,3.5633,2806.4,2805.8,3.0]
[1724520170377,6.41299628,2806.6,2805.8,3.0]
[1724520170378,0.06725406,2806.3,2805.8,3.0]
[1724520171077,0.06725244,2806.2,2805.8,3.0]
[1724520171572,3.5633,2806.4,2805.8,3.0]
[1724520171747,0.06725081,2806.1,2805.8,3.0]
[1724520171942,3.5633,2806.4,2805.8,3.0]
[1724520172362,3.56365,2806.2,2805.8,3.0]
[1724520172532,0.06725406,2806.3,2805.4,2.7356]
[1724520172851,3.56384,2806.0,2805.0,2.7356]
[1724520173047,0.06737605,2805.9,2805.1,0.630068]
[1724520173273,0.06737605,2805.9,2805.1,7.759768]
[1724520173435,0.06737605,2805.9,2805.1,4.194918]
[1724520174177,0.06737605,2805.9,2805.2,3.0]
[1724520174809,0.06737605,2805.9,2805.1,3.0]
[1724520174972,3.5643,2805.6,2804.8,2.7356]
[1724520175173,7.12869,2805.6,2804.8,3.365694]
[1724520175511,0.06718569,2805.5,2804.8,3.365694]
[1724520175803,0.06718569,2805.5,2804.9,3.56515]
[1724520176114,4.30134624,2805.9,2805.1,3.56493]
[1724520176295,0.06713036,2805.4,2805.1,3.56493]
[1724520176489,0.73741624,2805.8,2805.1,4.551498]
[1724520176805,0.06712873,2805.3,2805.1,0.986568]
[1724520176972,0.73741624,2805.8,2805.1,0.986568]
[1724520177303,2.44938565,2805.8,2805.1,0.986568]
[1724520177521,0.06713524,2805.7,2805.2,2.7356]
[1724520177811,0.06713524,2805.7,2805.3,3.9367968]
[1724520178103,0.06705267,2805.6,2805.4,3.0]
[1724520178600,0.73741624,2806.0,2805.4,3.0]
[1724520178903,0.78593513,2805.9,2805.4,3.0]
[1724520179110,0.06705755,2805.9,2805.5,0.69367968]
[1724520179701,0.06705755,2805.9,2805.6,2.7356]
[1724520180910,0.73741624,2806.0,2805.6,2.7356]
[1724520181092,0.06712882,2805.8,2805.6,2.7356]
[1724520181293,0.73741624,2805.9,2805.6,2.7356]
[1724520181472,0.0671272,2805.7,2805.6,2.7356]
[1724520181675,0.73741624,2806.0,2805.6,3.73498197]
[1724520181876,0.0671272,2805.7,2805.6,2.7356]
[1724520182066,0.73741624,2806.0,2805.6,2.7356]
[1724520182413,2.52279209,2805.9,2805.6,2.7356]
[1724520182710,0.72002705,2805.8,2805.6,2.7356]
[1724520182914,0.80454669,2805.9,2805.6,2.7356]
[1724520183111,0.73741624,2806.0,2805.7,4.26351097]
[1724520183264,0.72085272,2805.9,2805.6,2.7356]
[1724520183602,0.73741624,2806.0,2805.6,2.7356]
[1724520183808,0.72078052,2805.9,2805.6,2.7356]
[1724520184012,0.73741624,2806.0,2805.6,2.7356]
[1724520184176,0.72076882,2805.9,2805.6,2.7356]
[1724520184379,0.73741624,2806.0,2805.6,3.73496097]
[1724520184572,0.72084042,2805.9,2805.6,3.73496097]
[1724520184770,0.73741624,2806.0,2805.6,3.73496097]
[1724520185022,0.73741624,2806.1,2805.7,3.56407]
[1724520185171,1.11588156,2806.2,2805.7,6.56407]
[1724520185172,0.73741624,2806.2,2805.7,6.56407]
[1724520185370,0.72087817,2806.1,2805.8,1.0299031]
[1724520185583,0.73741624,2806.2,2805.8,1.0299031]
[1724520185917,0.72091823,2806.1,2805.8,1.0299031]
[1724520186069,0.73741624,2806.2,2805.9,2.6256]
[1724520186269,0.73741624,2806.3,2805.9,9.75333]
[1724520186519,0.73741624,2806.4,2806.1,3.56366]
[1724520186689,0.73741624,2806.5,2806.1,3.56366]
[1724520186869,0.73741624,2806.5,2806.2,3.0]
[1724520187068,0.73741624,2806.5,2806.3,6.18891]
[1724520187270,1.48784208,2806.8,2806.3,6.18891]
[1724520187271,0.73741624,2806.8,2806.3,6.18891]
[1724520187470,0.72112373,2806.7,2806.4,3.918891]
[1724520187706,0.73741624,2806.8,2806.4,3.918891]
[1724520187903,1.11588156,2806.9,2806.4,3.918891]
[1724520187904,0.73741624,2806.9,2806.4,3.918891]
[1724520188117,0.72108738,2806.8,2806.4,3.918891]
[1724520188318,0.73741624,2806.8,2806.4,3.918891]
[1724520188472,0.7208127,2806.7,2806.4,3.0]
[1724520188672,2.45704012,2806.6,2806.0,2.6256]
[1724520188975,2.45704012,2806.5,2806.1,2.97]
[1724520189209,0.7208127,2806.4,2806.1,2.97]
[1724520189374,0.73741624,2806.4,2806.1,2.97]
[1724520190029,0.73741624,2806.5,2806.1,2.97]
[1724520190175,0.72031127,2806.4,2806.1,2.97]
[1724520190374,0.73741624,2806.5,2806.1,2.97]
[1724520190576,3.56355,2806.2,2805.7,2.6256]
[1724520190810,2.45649262,2806.1,2805.7,2.6256]
[1724520191014,0.73825538,2806.1,2805.5,7.12871]
[1724520191170,0.73825538,2806.2,2805.6,0.975431]
[1724520191376,2.45691078,2806.1,2805.4,6.19014]
[1724520191622,0.7204241,2806.0,2805.4,6.19014]
[1724520191922,0.06751992,2805.9,2805.4,6.19014]
[1724520192426,0.73825538,2806.0,2805.4,2.6256]
[1724520192670,0.06751829,2805.8,2805.4,2.6256]
[1724520192794,0.8057753,2805.9,2805.4,4.332097]
[1724520193101,0.78790239,2805.8,2805.4,4.332097]
[1724520193302,0.06751829,2805.8,2805.5,3.0]
[1724520193839,0.80577367,2805.8,2805.5,3.0]
[1724520194032,0.80577367,2805.8,2805.3,7.31]
[1724520194195,2.4570038,2805.7,2805.3,7.31]
[1724520194377,2.4570038,2805.7,2804.8,3.5653]
[1724520194378,2.45697505,2805.6,2804.8,3.5653]
[1724520194574,0.72036776,2805.5,2804.8,5.273156]
[1724520194828,0.0672896,2805.5,2804.8,1.707856]
[1724520195028,0.0672896,2805.5,2805.2,6.20259]
[1724520195184,0.73825538,2805.7,2805.2,6.20259]
[1724520195386,0.06728797,2805.4,2805.2,6.20259]
[1724520195615,0.73825538,2805.7,2805.3,0.620259]
[1724520195798,1.719761,2805.6,2805.3,3.0]
[1724520196123,0.73825538,2805.7,2805.3,3.0]
[1724520196329,0.72090151,2805.6,2805.3,3.0]
[1724520196629,0.73825538,2805.7,2805.3,3.0]
[1724520196783,0.72088179,2805.6,2805.3,3.0]
[1724520197126,0.73825538,2805.7,2805.3,3.0]
[1724520197312,1.10738308,2805.8,2805.3,3.0]
[1724520197313,2.45812191,2805.6,2805.3,3.0]
[1724520197491,2.45812191,2805.5,2805.1,3.0]
[1724520197698,0.72085182,2805.4,2805.1,3.0]
[1724520197879,0.73825538,2805.5,2805.1,3.0]
[1724520198410,0.73825538,2805.5,2805.0,3.0]
[1724520198575,0.72132988,2805.4,2805.0,3.0]
[1724520198774,0.73825538,2805.5,2805.0,3.0]
[1724520198975,0.72124933,2805.4,2805.0,3.0]
[1724520199211,0.73825538,2805.5,2805.0,3.0]
[1724520199431,0.72115887,2805.4,2805.0,3.0]
[1724520199731,0.72115887,2805.4,2805.0,3.50166228]
[1724520199732,0.32653046,2805.3,2805.0,3.50166228]
[1724520199876,1.84822429,2805.8,2805.0,3.50166228]
[1724520199877,0.64879812,2805.9,2805.2,6.4517]
[1724520200076,3.56388,2806.0,2805.3,3.0]
[1724520200293,3.56388,2806.0,2805.3,3.39351536]
[1724520200294,0.96466011,2805.9,2805.3,3.39351536]
[1724520200504,0.96466011,2805.8,2805.4,0.67388401]
[1724520200725,4.67126308,2806.0,2805.4,0.67388401]
[1724520201038,0.96448857,2805.9,2805.4,0.67388401]
[1724520201181,0.96448857,2805.8,2805.4,0.67388401]
[1724520201386,4.67126308,2806.0,2805.4,0.67388401]
[1724520201579,0.96440781,2805.9,2805.4,0.67388401]
[1724520201775,0.96404219,2805.8,2805.4,0.67388401]
[1724520202026,4.67126308,2806.0,2805.4,0.67388401]
[1724520202346,0.96396027,2805.9,2805.4,0.67388401]
[1724520202481,1.10738308,2806.0,2805.5,0.3673884]
[1724520202681,1.10738308,2806.1,2805.5,0.3673884]
[1724520202930,0.96410612,2806.0,2805.5,0.3673884]
[1724520203145,0.96404969,2805.9,2805.5,0.3673884]
[1724520203283,1.10738308,2806.1,2805.5,0.3673884]
[1724520203482,0.96407497,2806.0,2805.5,0.3673884]
[1724520203727,1.10738308,2806.1,2805.5,0.3673884]
[1724520204012,0.96429697,2806.0,2805.5,0.3673884]
[1724520204182,0.96434609,2805.9,2805.5,0.3673884]
[1724520204383,1.10738308,2806.1,2805.5,0.3673884]
[1724520204615,0.96464717,2806.0,2805.4,0.67388401]
[1724520204825,0.96464717,2805.9,2805.4,0.67388401]
[1724520205030,1.10738308,2806.1,2805.4,0.67388401]
[1724520205190,0.96466257,2806.0,2805.4,0.67388401]
[1724520205524,0.96466257,2805.9,2805.4,0.67388401]
[1724520205711,2.07156851,2805.8,2805.3,3.0]
[1724520205897,1.47651077,2805.9,2804.7,7.31]
[1724520205898,4.77236851,2805.7,2804.7,7.31]
[1724520206082,4.67227308,2805.2,2804.3,6.2581]
[1724520206283,4.67227308,2805.2,2804.3,4.42142083]
[1724520206284,2.07156851,2805.1,2804.3,4.42142083]
[1724520206483,2.7008,2804.9,2804.2,7.31]
[1724520206736,5.63696851,2804.8,2804.2,7.31]
[1724520206911,0.96418543,2804.7,2804.2,7.31]
[1724520207257,4.67278308,2804.8,2804.2,7.16]
[1724520207421,0.96303532,2804.7,2804.2,7.16]
[1724520207625,4.67278308,2804.8,2804.2,7.16]
[1724520207821,0.96304234,2804.7,2804.2,7.16]
[1724520207981,3.5654,2804.8,2804.2,7.16]
[1724520208522,0.06646958,2804.7,2804.2,7.16]
[1724520210310,0.06646958,2804.7,2804.0,3.0]
[1724520210503,0.06646958,2804.7,2803.8,2.6922]
[1724520210504,3.56565,2804.6,2803.9,3.0]
[1724520210702,0.06607563,2804.5,2803.9,4.65796504]
[1724520211401,0.06607563,2804.5,2803.9,8.22439504]
[1724520211626,3.5654,2804.8,2803.9,8.22439504]
[1724520211822,0.066074,2804.4,2803.9,3.0]
[1724520212025,0.55,2804.7,2803.5,3.5669]
[1724520212026,3.56608,2804.2,2803.5,2.8321]
[1724520212318,0.06585545,2804.1,2803.5,2.8321]
[1724520212658,2.8337,2804.0,2803.5,0.28321]
[1724520212865,3.63207545,2804.1,2803.4,2.8321]
[1724520212866,0.06585545,2804.1,2803.4,2.8321]
[1724520213014,3.570732,2804.4,2803.5,3.56688]
[1724520213015,0.06526347,2803.9,2803.5,3.56688]
[1724520213362,0.06525334,2803.8,2803.4,2.8321]
[1724520213674,3.56609,2804.2,2803.4,2.8321]
[1724520213862,0.06492825,2803.7,2803.4,2.8321]
[1724520214160,0.06492662,2803.6,2803.5,3.0]
[1724520214358,3.56622,2804.1,2803.4,1.37180567]
[1724520214513,3.56647,2803.9,2803.3,3.0]
[1724520214712,0.06482042,2803.8,2803.3,3.0]
[1724520215610,7.13254,2804.1,2803.3,3.0]
[1724520215814,0.06480312,2803.7,2803.3,3.0]
[1724520216131,3.56649,2803.9,2803.3,3.0]
[1724520216334,0.06480149,2803.6,2803.3,3.0]
[1724520216546,7.13252,2804.1,2803.3,4.67184067]
[1724520216754,0.06479986,2803.5,2803.3,3.0]
[1724520216919,2.8337,2803.4,2803.3,3.0]
[1724520217114,0.06480178,2803.4,2803.0,2.9660335]
[1724520217319,6.40002,2804.1,2803.1,3.56747]
[1724520217518,0.55,2804.0,2803.2,3.5673]
[1724520217717,0.06461868,2803.9,2803.2,1.01008035]
[1724520217938,0.06461868,2803.9,2803.5,3.56689]
[1724520218143,0.06461868,2803.9,2803.5,7.13377]
[1724520218364,0.06461868,2803.9,2803.6,3.0]
[1724520218546,3.56593,2804.4,2803.6,3.0]
[1724520218749,0.06461135,2803.8,2803.6,3.0]
[1724520218952,3.56604,2804.3,2803.6,0.3]
[1724520219190,0.06451874,2803.7,2803.4,3.15629002]
[1724520219343,7.13211,2804.3,2803.4,3.0]
[1724520219537,0.06451425,2803.6,2803.4,3.0]
[1724520219732,6.39987,2804.2,2803.4,3.0]
[1724520219964,0.06451333,2803.5,2803.4,3.0]
[1724520220171,3.56629,2804.1,2803.4,4.05649365]
[1724520220487,0.06451333,2803.5,2803.4,4.05649365]
[1724520220785,3.56586,2804.4,2803.4,4.05649365]
[1724520221141,0.06466715,2804.3,2803.5,3.56693]
[1724520221337,0.06466715,2804.3,2803.6,3.76234237]
[1724520221771,3.63062715,2804.3,2803.6,3.76234237]
[1724520222076,3.56584,2804.4,2803.6,3.76234237]
[1724520222247,0.06466481,2804.2,2803.6,3.76234237]
[1724520222589,0.06466318,2804.1,2803.6,3.76234237]
[1724520222743,0.06466318,2804.1,2803.7,0.73292724]
[1724520222958,3.56584,2804.4,2803.7,0.73292724]
[1724520223156,0.06466154,2804.0,2803.8,2.8321]
[1724520223454,3.5656,2804.6,2803.8,2.8321]
[1724520223455,3.56583,2804.4,2803.8,2.8321]
[1724520223788,0.06470436,2804.3,2803.8,3.48860272]
[1724520224366,3.56583,2804.4,2803.8,3.48860272]
[1724520224585,0.06470273,2804.2,2803.8,3.48860272]
[1724520224785,0.06470436,2804.3,2803.8,3.48860272]
[1724520224995,0.0647011,2804.1,2803.9,0.43837554]
[1724520225149,0.06470273,2804.2,2803.9,0.43837554]
[1724520225354,0.06469947,2804.0,2803.9,0.43837554]
[1724520225681,3.56583,2804.4,2803.9,0.43837554]
[1724520226303,0.06480863,2804.3,2803.9,0.43837554]
[1724520226504,3.63076863,2804.3,2803.9,0.43837554]
[1724520226807,3.56612,2804.2,2803.8,2.8321]
[1724520227111,3.56634,2804.0,2803.6,3.0]
[1724520227304,3.56612,2804.2,2803.4,2.6227]
[1724520227305,0.06481001,2804.1,2803.5,3.0]
[1724520227602,3.56604,2804.3,2803.6,0.56227]
[1724520227898,3.56604,2804.3,2803.5,3.0]
[1724520228060,0.06478449,2804.2,2803.5,3.0]
[1724520229069,3.63089449,2804.2,2803.5,3.0]
[1724520231827,3.5662,2804.1,2803.5,3.0]
[1724520232192,0.06478479,2804.0,2803.5,3.0]
[1724520232431,0.06478479,2804.0,2803.5,4.29398261]
[1724520234850,0.06478479,2804.0,2803.0,2.9429335]
[1724520235351,2.7776,2804.3,2803.0,2.9429335]
[1724520235499,0.55,2804.2,2803.0,2.9429335]
[1724520235704,3.56664,2803.8,2803.0,0.1339335]
[1724520235906,0.61471163,2803.7,2803.0,0.1339335]
[1724520236151,0.06471163,2803.7,2803.1,3.17915935]
[1724520236532,3.56656,2803.9,2803.1,3.17915935]
[1724520236844,0.06470322,2803.8,2803.1,3.17915935]
[1724520237055,0.06470322,2803.8,2803.2,3.56734]
[1724520237345,4.11614,2804.2,2803.2,3.56733]
[1724520237346,0.06469874,2803.7,2803.2,3.56733]
[1724520237505,0.06469874,2803.7,2803.3,1.03139594]
[1724520237709,3.56628,2804.1,2803.3,1.03139594]
[1724520237971,3.56628,2804.1,2803.2,3.0]
[1724520238278,0.0645524,2804.0,2803.2,3.0]
[1724520239368,3.6308824,2804.0,2803.2,3.0]
[1724520239969,3.56646,2803.9,2803.2,3.0]
[1724520240568,0.06454985,2803.8,2803.2,3.0]
[1724520240769,3.56672,2803.7,2803.2,3.0]
[1724520240924,3.56672,2803.7,2803.0,0.1339335]
[1724520241122,0.06460158,2803.6,2803.0,0.1339335]
[1724520241577,3.63144158,2803.6,2803.0,0.1339335]
[1724520241960,3.63147158,2803.6,2803.0,0.1339335]
[1724520243455,0.06460158,2803.6,2803.0,0.72822685]
[1724520243843,2.7776,2803.9,2803.0,4.29574685]
[1724520243844,6.34407,2803.9,2803.0,4.29574685]
[1724520244044,0.06459995,2803.5,2803.1,6.56747]
[1724520244245,3.56647,2803.9,2803.1,3.0]
[1724520244477,0.06459832,2803.4,2803.0,3.72822685]
[1724520244670,3.56647,2803.9,2803.1,0.72958769]
[1724520244872,0.06459668,2803.3,2803.1,0.72958769]
[1724520245081,3.56647,2803.9,2803.1,0.72958769]
[1724520245598,3.56678,2803.7,2803.0,3.1339335]
[1724520245758,3.56678,2803.7,2803.0,0.1339335]
[1724520245759,7.13358,2803.7,2803.0,0.1339335]
[1724520245964,3.63145158,2803.6,2803.0,0.1339335]
[1724520246592,0.06460158,2803.6,2803.0,0.1339335]
[1724520247090,3.56653,2803.9,2803.0,0.1339335]
[1724520247299,0.06459389,2803.5,2803.0,0.1339335]
[1724520247452,3.56678,2803.7,2803.0,0.1339335]
[1724520247812,3.5665,2803.9,2803.0,0.1339335]
[1724520248089,0.06455902,2803.6,2803.0,3.7015135]
[1724520248298,3.56633,2804.0,2803.1,7.23761135]
[1724520248597,3.56646,2803.9,2803.1,3.67015135]
[1724520248803,7.19746441,2803.9,2803.1,0.67015135]
[1724520248948,3.63091441,2803.9,2803.1,0.67015135]
[1724520249178,0.06445441,2803.9,2803.2,2.8828]
[1724520249377,0.06445441,2803.9,2803.3,6.92242514]
[1724520249577,4.303182,2804.2,2803.3,6.92242514]
[1724520249782,0.06445872,2803.8,2803.3,3.35529514]
[1724520250034,7.13252,2804.1,2803.3,3.35529514]
[1724520250035,4.303252,2804.1,2803.3,3.0]
[1724520250177,0.06445709,2803.7,2803.3,3.0]
[1724520250385,3.56654,2803.9,2803.3,3.0]
[1724520250578,0.06445546,2803.6,2803.3,3.0]
[1724520250783,3.56658,2803.8,2803.3,3.0]
[1724520250993,0.06445383,2803.5,2803.3,3.0]
[1724520251196,0.737032,2803.7,2803.3,3.0]
[1724520251501,0.737032,2803.8,2803.3,4.37129514]
[1724520251831,0.06445709,2803.7,2803.3,4.37129514]
[1724520252125,0.737032,2803.8,2803.3,4.37129514]
[1724520252329,0.67306839,2803.7,2803.3,4.37129514]
[1724520252534,0.06445709,2803.7,2803.3,4.37129514]
[1724520252681,0.737032,2803.8,2803.3,4.37129514]
[1724520253032,0.06447828,2803.7,2803.3,4.37129514]
[1724520253180,0.67316694,2803.6,2803.3,4.37129514]
[1724520253381,0.737032,2803.7,2803.4,0.72540951]
[1724520253693,0.06447502,2803.5,2803.4,0.72540951]
[1724520253901,0.737032,2803.7,2803.4,0.72540951]
[1724520254113,0.67317162,2803.6,2803.3,3.0]
[1724520254295,0.67317162,2803.6,2803.2,3.0]
[1724520254296,2.37253701,2803.5,2803.2,3.0]
[1724520254498,1.63560112,2803.4,2803.2,3.0]
[1724520254699,0.06452319,2803.4,2803.2,3.0]
[1724520255234,0.80155519,2803.4,2803.2,3.0]
[1724520255417,0.06452319,2803.4,2803.2,3.0]
[1724520255586,0.06452319,2803.4,2803.2,4.02939335]
[1724520255906,0.67329521,2803.3,2803.0,0.1339335]
[1724520256115,0.80155519,2803.4,2803.0,0.1339335]
[1724520256298,0.67345503,2803.3,2803.0,0.1339335]
[1724520256478,0.737032,2803.3,2803.0,0.1339335]
[1724520256681,0.06445735,2803.2,2803.0,0.1339335]
[1724520257133,0.737032,2803.3,2803.0,0.1339335]
[1724520257316,0.06444008,2803.1,2803.0,0.1339335]
[1724520257520,2.37350271,2803.1,2803.0,0.1339335]
[1724520257698,2.43792191,2803.1,2803.0,0.1339335]
[1724520258188,2.43751373,2803.1,2803.0,0.1339335]
[1724520259688,1.70048173,2803.1,2803.0,0.1339335]
[1724520260090,0.7378672,2803.1,2803.0,0.1339335]
[1724520260492,2.43751633,2803.1,2803.0,0.1339335]
[1724520260801,2.43821052,2803.1,2803.0,0.1339335]
[1724520262806,1.70032781,2803.1,2803.0,0.1339335]
[1724520262991,1.70040781,2803.1,2803.0,0.1339335]
[1724520263330,5.26787781,2803.1,2803.0,0.1339335]
[1724520263491,14.92562139,2803.1,2803.0,0.1339335]
[1724520263693,15.29343784,2803.1,2803.0,0.1339335]
[1724520264037,15.29343784,2803.1,2801.9,7.16]
[1724520264038,3.56838,2802.4,2801.9,7.16]
[1724520264338,5.94239414,2802.3,2801.6,2.6411]
[1724520264536,3.63253994,2802.3,2801.6,2.6411]